[Event "44th Chess Olympiad Women 2022"]
[Site "Chennai"]
[Date "2022.08.06"]
[Round "8.4"]
[White "Bulmaga, Irina"]
[Black "Mammadzada, Gunay"]
[Result "1-0"]
[WhiteElo "2394"]
[BlackElo "2455"]
[Annotator "TA"]
[PlyCount "97"]
[EventDate "2022.??.??"]
[TimeControl "60"]

{[%evp 17,97,27,27,20,23,32,53,23,19,-46,-53,-41,-44,-36,-25,-82,-76,-64,-68,
-62,-58,-114,-102,-106,-127,-112,-119,-102,0,0,0,0,0,0,0,-83,18,12,11,8,10,25,
128,0,17,25,393,361,467,38,47,37,30,41,93,95,101,85,111,95,93,68,214,115,368,
282,661,625,1243,1234,967,611,965,539,937,940,850,559,1369,1129,29982,5014]} 1.
e4 {[%emt 0:00:04]} c5 {[%emt 0:00:06]} 2. Nf3 {[%emt 0:00:09]} d6 {[%emt 0:00:
00]} 3. d4 {[%emt 0:00:08]} cxd4 {[%emt 0:00:05]} 4. Nxd4 {[%emt 0:00:07]} Nf6
{[%emt 0:00:03]} 5. Nc3 {[%emt 0:00:09]} a6 {[%emt 0:00:04]} 6. Bg5 {[%emt 0:
00:00]} e6 {[%emt 0:00:12]} 7. f4 {[%emt 0:01:24]} Nbd7 {[%emt 0:00:47]} 8. Qe2
{[%emt 0:06:07]} Qc7 {[%emt 0:01:18]} 9. O-O-O {[%emt 0:02:04]} b5 {[%emt 0:00:
00]} 10. a3 {[%emt 0:05:06] B96: Sicilian Najdorf: 6 Bg5 e6 7 f4, lines other
than 7...Qb6 and 7...Be7.} Be7 {[%emt 0:05:58] now scores much better than the
old 10...Bb7.} 11. g4 {[%emt 0:02:32]} Rb8 {[%emt 0:03:48]} 12. Bg2 {[%emt 0:
00:00] White is slightly better.} h6 {[%emt 0:03:34]} 13. Bxf6 {[%emt 0:25:45]}
(13. Bh4 $11) 13... Bxf6 $15 {[%emt 0:03:13]} 14. h4 {[%emt 0:05:00][%cal
Ye4e5]} b4 {[%emt 0:24:44]} 15. axb4 {[%emt 0:02:23]} Rxb4 {[%emt 0:01:53]} 16.
e5 $1 {[%emt 0:03:45]} dxe5 {[%emt 0:01:40]} 17. Nc6 {[%emt 0:04:33]} Rxf4 {
[%emt 0:07:39]} 18. Ne4 {[%emt 0:01:11]} O-O {[%emt 0:00:33]} 19. g5 {[%emt 0:
00:00]} ({White should play} 19. Rh3 $1 $15) 19... Bb7 $1 $17 {[%emt 0:01:32] 
[#]} 20. Rxd7 $146 {[%emt 0:05:07] Remove Defender, Decoy} ({Predecessor:} 20.
Nb4 Bxe4 21. Bxe4 Nc5 22. gxf6 Nxe4 23. Nd3 Qa5 24. c3 Rc8 25. Qg2 Qa1+ 26. Kc2
Qa4+ 27. Kb1 Rxf6 28. Rhg1 Rg6 29. Qh2 Qb3 {0-1 (29) Shahil,D (2148)-Raja,H 
(2482) Roquetas de Mar 2020}) 20... Qxd7 {[%emt 0:01:04]} 21. Nc5 {[%emt 0:00:
48] [#]} Qc7 {[%emt 0:00:41]} 22. Nxb7 {[%emt 0:00:40]} Qxb7 {[%emt 0:06:01]} (
22... hxg5 $17 23. Nc5 (23. hxg5 $2 Bxg5 24. Kb1 Qxb7 $19) 23... Rxh4) 23. gxf6
$11 {[%emt 0:01:09]} Rxf6 {[%emt 0:00:53]} 24. Nxe5 {[%emt 0:05:49]} Qa7 {
[%emt 0:01:35] Hoping for ...Rf2.} 25. Be4 {[%emt 0:05:22]} Rf2 {[%emt 0:01:47]
} 26. Qd3 {[%emt 0:04:00]} (26. Qe1 $1 $11) 26... Rc8 {[%emt 0:15:15]} (26...
Qc5 $1 $17 {[%cal Rc5e5]} 27. Ng4 (27. Nd7 Qa5 $17) 27... Rf4) 27. Nc6 {
[%emt 0:00:34] White has compensation.} Qc7 $1 {[%emt 0:03:59]} 28. Qe3 {
[%emt 0:02:19]} Rf6 {[%emt 0:00:17] [#]} ({Don't play} 28... Qf4 29. Qxf4 Rxf4
30. Ne7+ Kf8 31. Nxc8 $16) 29. Ne5 $1 {[%emt 0:01:10][%cal Yh1d1]} Rb8 {
[%emt 0:06:10] [#]} (29... Qxe5 $2 30. Bh7+ $1 Kxh7 31. Qxe5 $18) (29... a5 $11
) (29... g6 30. Bd3) 30. Rg1 {[%emt 0:02:34]} g6 {[%emt 0:04:10]} (30... Qxe5
$2 {[#]} 31. Bh7+ $1 Kxh7 32. Qxe5 $18) 31. Bd3 $36 {[%emt 0:02:34] White has
some pressure. Really sharp!} Qb7 $2 {[%emt 0:03:04]} (31... h5 $1 $11) 32. Qd4
$18 {[%emt 0:00:28] Strongly threatening Nd7.} Qb4 {[%emt 0:00:53]} 33. Nc4 $2
{[%emt 0:00:31]} (33. c4 $18 {[%cal Re5g6] Threatens to win with Nxg6!} Qb6 34.
Qxb6 Rxb6 35. Nd7) 33... e5 $14 {[%emt 0:00:33]} 34. Qxe5 {[%emt 0:02:25]} Re6
{[%emt 0:00:01]} 35. Qg3 {[%emt 0:00:54]} Rbe8 {[%emt 0:01:04]} ({Black should
try} 35... Rc8 $14) 36. c3 $16 {[%emt 0:00:23]} Qc5 {[%emt 0:01:53]} 37. Kc2 {
[%emt 0:00:45]} Qd5 {[%emt 0:00:47][%cal Ye6e2]} 38. Qf4 {[%emt 0:00:39] Black
must now prevent Nd2.} Rd8 {[%emt 0:00:31]} 39. Rd1 {[%emt 0:00:29] Active
counter play!} Qh5 {[%emt 0:00:32]} (39... Kg7 $14) 40. Rd2 {[%emt 0:00:29]} (
40. Rf1 $18 Re7 41. Nd2) 40... Re1 $2 {[%emt 0:00:29]} (40... a5 $16 {might
work better.} 41. b3 Kg7) 41. Nd6 {[%emt 0:03:44][%cal Yc4d6,Yd6e4,Ye4f6,Yf6g4]
} Rf8 {[%emt 0:09:08]} (41... Re7 42. Bxa6 Qe5 43. Qxe5 Rxe5) 42. Ne4 $18 {
[%emt 0:03:53] White threatens Nf6+ and mate.} Qa5 {[%emt 0:00:00] ( -> ...
Qa4+)} 43. Nf6+ {[%emt 0:02:02]} Kg7 {[%emt 0:00:02]} 44. Ng4 {[%emt 0:08:50]}
Qb6 {[%emt 0:05:42]} 45. Qxh6+ {[%emt 0:01:19]} ({Not} 45. Re2 Rxe2+ 46. Bxe2
h5 $16) 45... Kg8 {[%emt 0:00:07]} 46. Rf2 {[%emt 0:04:00] Threatening mate
with Nf6+.} Re6 {[%emt 0:00:09] Inhibits Nf6+.} 47. Bc4 {[%emt 0:03:44]} Rb8 {
[%emt 0:01:29]} 48. b3 {[%emt 0:00:22]} Qa5 {[%emt 0:00:00]} 49. Kb2 {[%emt 0:
01:02] Weighted Error Value: White=0.60/Black=0.78} (49. Bxe6 $142 Qa2+ 50. Kd3
Qb1+ 51. Ke2 Qe4+ 52. Kd2 Qxe6 53. Nf6+ Qxf6 54. Rxf6) 1-0

[Event "44th Chess Olympiad Women 2022"]
[Site "Chennai"]
[Date "2022.08.06"]
[Round "8.4"]
[White "Cosma, Elena-Luminita"]
[Black "Mammadova, Gulnar"]
[Result "0-1"]
[WhiteElo "2248"]
[BlackElo "2380"]
[Annotator "TA"]
[PlyCount "126"]
[EventDate "2022.??.??"]
[TimeControl "60"]

{[%evp 14,126,0,0,10,-3,16,-6,-4,-11,-12,-1,0,-30,-17,-24,15,15,12,0,0,0,0,0,0,
-7,4,-10,0,0,0,0,0,0,0,0,0,0,0,0,0,0,8,0,-1,-10,-10,-16,-10,-18,-3,-79,-79,-79,
-79,-70,-68,-79,-79,-77,-47,-56,-32,-75,-75,-75,-75,-76,-79,-79,-78,-83,-76,
-68,-62,-77,-68,-178,-61,-61,-61,-154,-139,-312,-307,-252,-171,-167,-166,-259,
-254,-213,-233,-230,-236,-358,-313,-464,-466,-12822,-4134,-29969,-29971,-29972,
-29973,-29973,-29973,-29958,-29974,-29975,-29977,-29978,-29979,-29988,-29988]} 
1. Nf3 {[%emt 0:00:03]} d5 {[%emt 0:00:10]} 2. e3 {[%emt 0:00:16]} Nf6 {
[%emt 0:01:44]} 3. c4 {[%emt 0:00:24]} e6 {[%emt 0:02:38]} 4. b3 {[%emt 0:00:
00]} c5 {[%emt 0:05:33]} 5. Bb2 {[%emt 0:00:31]} Nc6 {[%emt 0:00:39]} 6. cxd5 {
[%emt 0:00:58]} exd5 {[%emt 0:00:44]} 7. Bb5 {[%emt 0:00:54]} Bd6 {[%emt 0:00:
00]} 8. O-O {[%emt 0:10:04]} O-O {[%emt 0:04:48] A13: English Opening: 1...e6.}
9. h3 {[%emt 0:04:01]} Ne4 {[%emt 0:05:12] [#]} 10. d3 $146 {[%emt 0:19:11]} (
10. Nc3 $5 {[%cal Rc3d5]}) ({Predecessor:} 10. d4 cxd4 11. Nxd4 Ne5 12. Nd2 a6
13. Be2 Bd7 14. N2f3 Qe7 15. Rc1 Rad8 16. Rc2 {1-0 (32) Kashlinskaya,A (2494)
-Coleman,T (2333) Chess.com INT 2020}) 10... Ng5 {[%emt 0:01:46] The position
is equal.} 11. Nbd2 {[%emt 0:13:37]} Bd7 {[%emt 0:09:26]} 12. Bxc6 {[%emt 0:00:
00]} Bxc6 {[%emt 0:02:33]} 13. Nxg5 {[%emt 0:08:06]} Qxg5 {[%emt 0:00:18]} 14.
d4 {[%emt 0:00:17]} Qg6 {[%emt 0:15:48][%cal Yc5c4]} (14... c4 $5) 15. dxc5 {
[%emt 0:03:15]} Bxc5 {[%emt 0:01:35][%cal Yd5d4]} 16. Bd4 {[%emt 0:03:43]} Bd6
{[%emt 0:05:56]} 17. Qg4 {[%emt 0:07:40]} Qxg4 {[%emt 0:03:27]} 18. hxg4 {
[%emt 0:00:05]} f6 {[%emt 0:03:17]} 19. Rfd1 {[%emt 0:04:23]} Rfc8 {[%emt 0:00:
00]} 20. f3 {[%emt 0:05:08]} a5 {[%emt 0:02:49]} 21. Nb1 {[%emt 0:02:25]} b5 {
[%emt 0:02:37]} 22. Nc3 {[%emt 0:03:22]} Kf7 {[%emt 0:06:43]} 23. Ne2 {[%emt 0:
00:00]} Bb7 {[%emt 0:02:47]} 24. Rac1 {[%emt 0:06:13]} a4 {[%emt 0:04:54]} 25.
Rxc8 {[%emt 0:01:00]} Rxc8 {[%emt 0:00:09]} 26. bxa4 {[%emt 0:02:50]} bxa4 {
[%emt 0:02:20]} 27. Rb1 {[%emt 0:00:09]} Bc6 {[%emt 0:00:24]} 28. Nc3 {[%emt 0:
00:00]} Rb8 {[%emt 0:00:57]} 29. Rxb8 {[%emt 0:00:25]} Bxb8 $11 {[%emt 0:00:02]
Endgame KBB-KBN} 30. Kf2 {[%emt 0:00:16]} Bd6 {[%emt 0:00:56]} 31. Ke2 {
[%emt 0:00:44]} Ke6 {[%emt 0:02:03]} 32. g5 {[%emt 0:00:42]} (32. Kd3 $11)
32... fxg5 $17 {[%emt 0:00:20]} 33. Bxg7 {[%emt 0:00:07]} h5 {[%emt 0:00:40]}
34. Bd4 {[%emt 0:01:00]} h4 {[%emt 0:01:05]} 35. Kd2 {[%emt 0:00:39]} Bb4 {
[%emt 0:00:35]} 36. Ke2 {[%emt 0:00:14]} Be8 {[%emt 0:02:15]} 37. Kf2 {[%emt 0:
00:00]} Bd6 {[%emt 0:00:21]} 38. Ke2 {[%emt 0:00:22]} a3 {[%emt 0:02:16]} 39.
Kd2 {[%emt 0:00:33]} Bb4 {[%emt 0:01:00]} 40. Ke2 {[%emt 0:00:33]} Bg6 {
[%emt 0:00:49]} 41. Bg7 {[%emt 0:31:44]} Bc5 {[%emt 0:04:22]} 42. Kd2 {[%emt 0:
00:00]} Bh5 {[%emt 0:04:24][%cal Yh4h3]} 43. Ne2 {[%emt 0:00:00]} Kf7 {[%emt 0:
00:00]} 44. Bd4 {[%emt 0:00:00]} Bd6 {[%emt 0:02:17][%cal Yh5f3]} 45. Ng1 {
[%emt 0:00:00] [#]} (45. Ke1 $1 $15) 45... g4 {[%emt 0:02:56]} ({Better is} 
45... Bg6 $1 $19 {[%cal Rg6b1] Hoping for ...Bb1.} 46. Ne2 g4 47. fxg4 Be4) 46.
fxg4 $15 {[%emt 0:00:00]} Bxg4 {[%emt 0:00:05]} 47. Nh3 {[%emt 0:00:00]} (47.
Ke1 $15) 47... Bf5 $17 {[%emt 0:01:42] Strongly threatening ...Bb1.} 48. Kc3 $2
{[%emt 0:00:53] This costs White the game.} (48. e4 $17 dxe4 49. Ke3) 48... Bb1
$19 {[%emt 0:01:44]} 49. Kb3 {[%emt 0:00:10]} Bd3 {[%emt 0:00:10] White must
now prevent ...Be7.} 50. Ng5+ {[%emt 0:00:45] [#]} Ke8 $1 {[%emt 0:03:19]} 51.
Nf3 {[%emt 0:00:17]} (51. Bf6 {was worth a try.}) 51... Bc4+ {[%emt 0:00:46]}
52. Kc2 {[%emt 0:01:15]} Be7 {[%emt 0:02:15] Threatens to win with ...Bf1.
This bishop pair is nice.} ({Not} 52... Bxa2 53. Nxh4 Kf7 54. g4 $11) 53. Bc3 {
[%emt 0:01:11]} Be2 {[%emt 0:04:23] ...Bxf3 is the strong threat.} ({Worse is} 
53... Bxa2 54. Be1 $17) 54. Ne1 {[%emt 0:01:07]} (54. Nd2 $142) 54... Bf1 {
[%emt 0:00:28]} 55. Kb3 {[%emt 0:00:29]} (55. Be5 $142) 55... Bxg2 {[%emt 0:00:
00]} ({Wrong is} 55... Bc4+ $2 56. Kc2 $19) 56. Nxg2 {[%emt 0:00:29]} (56. Nd3
$142) 56... h3 {[%emt 0:00:02][%cal Yh4h3,Yh3g2]} 57. Be5 {[%emt 0:00:00]} hxg2
{[%emt 0:00:07] KB-KB. Black mates.} 58. Bh2 {[%emt 0:00:03]} Bc5 {[%emt 0:01:
06]} 59. Bg1 {[%emt 0:00:14]} Kd7 {[%emt 0:00:57]} 60. Kc3 {[%emt 0:00:00]} Ke6
{[%emt 0:00:17]} 61. Kd3 {[%emt 0:00:12]} Kf5 {[%emt 0:00:18]} 62. Bh2 {
[%emt 0:00:49]} Kg4 {[%emt 0:00:29]} 63. e4 {[%emt 0:00:47]} Kh3 {[%emt 0:00:
00] Weighted Error Value: White=0.36/Black=0.08 (flawless)} 0-1

[Event "44th Chess Olympiad Women 2022"]
[Site "Chennai"]
[Date "2022.08.06"]
[Round "8.4"]
[White "Fataliyeva, Ulviyya"]
[Black "Lehaci, Miruna-Daria"]
[Result "0-1"]
[WhiteElo "2372"]
[BlackElo "2193"]
[Annotator "TA"]
[PlyCount "124"]
[EventDate "2022.??.??"]
[TimeControl "60"]

{[%evp 9,124,18,32,17,17,15,22,22,16,17,25,20,20,24,26,32,27,28,32,37,34,32,43,
31,39,36,39,29,26,27,43,25,28,0,54,-28,-14,-9,36,30,26,27,39,31,58,11,12,6,9,0,
33,35,84,86,91,90,81,89,88,83,84,85,95,96,102,91,127,47,53,33,133,144,132,89,
90,66,85,37,41,37,37,8,11,7,8,3,3,12,4,0,0,0,0,0,0,0,0,-6,0,0,0,0,0,0,0,-220,
-219,-1426,-1500,-1770,-1355,-1767,-1752,-1581,-1529,-1281,-1052]} 1. Nf3 {
[%emt 0:00:02]} d5 {[%emt 0:00:06]} 2. d4 {[%emt 0:00:06]} e6 {[%emt 0:00:06]}
3. c4 {[%emt 0:00:08]} a6 {[%emt 0:00:05]} 4. cxd5 {[%emt 0:00:10]} exd5 {
[%emt 0:00:05]} 5. Nc3 {[%emt 0:00:04]} c6 {[%emt 0:00:10]} 6. Qb3 {[%emt 0:00:
00] D31: Queen's Gambit Declined: Semi-Slav without ...Nf6 (+ Marshall Gambit
and Noteboom) and Exchange Variation lines without ...Nf6.} Nf6 {[%emt 0:00:14]
Prevents e4.} 7. Bg5 {[%emt 0:00:08][%cal Ye2e4]} Be7 {[%emt 0:03:09]} 8. e3 {
[%emt 0:00:04] The position is equal.} h6 {[%emt 0:00:45]} 9. Bh4 {[%emt 0:00:
00]} Nbd7 {[%emt 0:05:44]} 10. Bd3 {[%emt 0:00:23]} O-O {[%emt 0:02:11]} 11.
O-O {[%emt 0:00:15]} Re8 {[%emt 0:01:06] [#]} 12. Rfc1 $146 {[%emt 0:00:11]} ({
Predecessor:} 12. h3 Ne4 13. Bxe7 Qxe7 14. Bxe4 dxe4 15. Nd2 Nf6 16. Qa3 Qd8
17. Nc4 Be6 18. Nd6 {1-0 (48) Makhnev,D (2505)-Warmerdam,M (2607) Chess.com
INT 2022}) 12... Ne4 {[%emt 0:04:01]} 13. Bxe7 {[%emt 0:00:14]} ({But not} 13.
Nxe4 $2 dxe4 14. Bc4 (14. Bxe7 $2 Qxe7 15. Bxe4 Qxe4 $19) 14... exf3 $19) 13...
Qxe7 {[%emt 0:00:30]} 14. Bxe4 {[%emt 0:00:05]} dxe4 {[%emt 0:00:27]} 15. Nd2 {
[%emt 0:00:03][%cal Yf3d2,Yd2c4,Yc4e5]} Nf6 {[%emt 0:00:44]} 16. Qa3 {[%emt 0:
00:06]} Qd8 {[%emt 0:07:35]} 17. Nc4 {[%emt 0:00:08]} Bg4 {[%emt 0:00:00]} 18.
Qb4 {[%emt 0:12:39]} Re7 {[%emt 0:05:12]} 19. a4 {[%emt 0:04:12]} a5 {[%emt 0:
07:28]} 20. Qc5 {[%emt 0:04:22]} Re6 {[%emt 0:07:09]} 21. Ne5 {[%emt 0:00:00]}
Bh5 {[%emt 0:05:15]} (21... b6 $11 22. Qc4 c5) 22. Ra3 {[%emt 0:05:42]} (22. h3
$14) 22... b6 $11 {[%emt 0:05:25]} 23. Qc4 {[%emt 0:01:01]} Ng4 {[%emt 0:05:39]
} 24. Nxe4 {[%emt 0:08:18]} (24. Nxg4 {is interesting.} Bxg4 25. h3 Bf5 26. Ne2
) 24... Nxe5 {[%emt 0:04:00]} 25. dxe5 {[%emt 0:00:11]} Rxe5 {[%emt 0:01:57]
[%cal Ye6e5,Ye5d5,Yd5d2]} 26. Qxc6 {[%emt 0:04:06]} Rd5 {[%emt 0:03:19]
Against Nd6. ( -> ...Rd1+)} 27. Raa1 {[%emt 0:08:36]} (27. h3 $14 {should be
considered.}) 27... Bg4 {[%emt 0:05:23] ...Rc8 is the strong threat.} 28. Nc3 {
[%emt 0:06:35]} Rd2 {[%emt 0:00:42]} 29. Qe4 {[%emt 0:02:06]} Bh5 {[%emt 0:01:
41]} 30. Qe5 $36 {[%emt 0:00:20] Black is under pressure.} Bg4 {[%emt 0:03:43]}
(30... Qg5 $14 31. Qxg5 hxg5) 31. h3 $16 {[%emt 0:03:08]} Be6 {[%emt 0:00:19]}
32. Rd1 $1 {[%emt 0:03:14]} Bb3 {[%emt 0:00:00]} 33. Rxd2 {[%emt 0:02:43]} Qxd2
{[%emt 0:00:04]} 34. Ne4 {[%emt 0:01:32]} Qc2 {[%emt 0:00:59]} 35. Nd6 {
[%emt 0:05:56]} f6 {[%emt 0:05:30]} 36. Qd4 {[%emt 0:02:51]} Qc7 {[%emt 0:01:
20]} 37. Nb5 {[%emt 0:02:13]} Qc6 {[%emt 0:00:00]} 38. e4 {[%emt 0:04:50]} (38.
Ra3 $16 Qc1+ 39. Kh2) 38... Re8 $14 {[%emt 0:00:00]} 39. Re1 {[%emt 0:02:25]}
Kh8 {[%emt 0:00:37] [#]} ({Better is} 39... Re7 $14) 40. Re3 $1 $16 {[%emt 0:
01:59]} Bg8 {[%emt 0:00:23]} 41. f3 {[%emt 0:00:00] Strongly threatening Rc3.}
Qc1+ {[%emt 0:04:51]} 42. Kf2 {[%emt 0:00:00]} Rc8 {[%emt 0:02:33]} (42... Bc4
$2 43. Nd6 Qf1+ 44. Kg3 $18) 43. Na3 {[%emt 0:00:00] Prevents Rc4.} (43. Re2
$16) 43... Rc6 $14 {[%emt 0:04:10]} 44. Re1 {[%emt 0:00:00]} Qf4 {[%emt 0:01:
06]} 45. Qe3 {[%emt 0:00:00]} (45. g3 $5 {[%cal Rg3f4]} Rd6 46. gxf4 Rxd4 47.
e5 $14) 45... Qd6 {[%emt 0:02:24]} 46. Re2 {[%emt 0:02:05]} Qb4 {[%emt 0:01:08]
} (46... Qd1 {seems wilder.} 47. Rd2 Qxa4 48. Rd4 Qb3) 47. Nb5 {[%emt 0:01:36]}
Qxa4 {[%emt 0:03:13]} 48. Nd4 {[%emt 0:00:00]} Rc7 {[%emt 0:01:58]} 49. e5 {
[%emt 0:01:46]} fxe5 {[%emt 0:01:26]} 50. Qxe5 {[%emt 0:00:11]} Rc5 {[%emt 0:
00:36]} 51. Qf4 {[%emt 0:03:03]} Rd5 {[%emt 0:01:45]} 52. Re4 {[%emt 0:00:46]}
Qd7 {[%emt 0:01:14]} 53. Qe3 {[%emt 0:00:00]} b5 {[%emt 0:01:20]} 54. Ne2 {
[%emt 0:01:46]} b4 {[%emt 0:02:35]} 55. Re7 {[%emt 0:00:27]} Qd6 {[%emt 0:00:
25]} 56. Re8 {[%emt 0:01:16]} a4 {[%emt 0:00:00] aiming for ...Rd2.} 57. Rc8 $2
{[%emt 0:00:33]} (57. Qe4 $11) 57... Re5 $19 {[%emt 0:00:51]} ({And not} 57...
Rd2 58. Ra8 $17) 58. Qc1 {[%emt 0:00:49] [#]} (58. Rc6 Qxc6 59. Qxe5) 58...
Qb6+ $1 {[%emt 0:01:28] Black is clearly winning.} 59. Kf1 {[%emt 0:00:09]} Qa6
{[%emt 0:00:36]} 60. Rc2 {[%emt 0:00:41]} b3 {[%emt 0:02:12]} 61. Rd2 {[%emt 0:
00:18] [#]} Rxe2 $1 {[%emt 0:00:18]} 62. Rxe2 {[%emt 0:00:34]} Bc4 {[%emt 0:00:
03] Weighted Error Value: White=0.37/Black=0.09 (flawless)} 0-1

[Event "44th Chess Olympiad Women 2022"]
[Site "Chennai"]
[Date "2022.08.06"]
[Round "8.5"]
[White "Abdumalik, Zhansaya"]
[Black "Borosova, Zuzana"]
[Result "1-0"]
[WhiteElo "2495"]
[BlackElo "2277"]
[Annotator "TA"]
[PlyCount "63"]
[EventDate "2022.??.??"]
[TimeControl "60"]

{[%evp 16,63,0,0,13,0,57,50,52,43,112,87,97,53,62,52,35,0,14,4,68,11,35,0,0,0,
0,0,0,0,0,0,28,36,41,8,8,10,18,9,62,50,36,29,47,46,452,413,29996,29997]} 1. e4
{[%emt 0:00:03]} e5 {[%emt 0:00:05]} 2. Nf3 {[%emt 0:00:07]} Nc6 {[%emt 0:00:
00]} 3. d4 {[%emt 0:00:07]} exd4 {[%emt 0:00:22]} 4. Nxd4 {[%emt 0:00:07]} Nf6
{[%emt 0:00:11]} 5. Nxc6 {[%emt 0:00:09]} bxc6 {[%emt 0:00:07]} 6. e5 {[%emt 0:
00:00]} Qe7 {[%emt 0:00:36]} 7. Qe2 {[%emt 0:00:15]} Nd5 {[%emt 0:00:18]} 8. c4
{[%emt 0:00:05]} Nb6 {[%emt 0:00:58]} 9. Nc3 {[%emt 0:00:58]} Ba6 {[%emt 0:00:
00] C45: Scotch Game.} 10. b3 {[%emt 0:00:06]} Qe6 {[%emt 0:13:50]} (10...
O-O-O $1 $11) 11. Bb2 $14 {[%emt 0:04:47]} Bb4 {[%emt 0:00:59] White is
slightly better.} 12. O-O-O {[%emt 0:04:41]} O-O-O {[%emt 0:16:06] [#]} (12...
O-O $1 $14) 13. a3 $146 {[%emt 0:03:32]} ({Predecessor:} 13. f4 Rhe8 14. Qf2
Bb7 15. Bd3 d5 16. exd6 cxd6 17. Bxh7 Bc5 18. Qc2 Kb8 19. Kb1 {1-0 (43)
Kratochvil,J (2285)-Jires,J (2052) Czech Republic 2018}) 13... Be7 {[%emt 0:00:
00]} 14. h4 {[%emt 0:07:26]} Rhe8 {[%emt 0:12:07]} 15. Rh3 {[%emt 0:07:16]} f6
{[%emt 0:03:34]} 16. f4 {[%emt 0:04:23][%cal Yf2f4,Yf4e5]} fxe5 {[%emt 0:03:15]
} 17. fxe5 {[%emt 0:01:28]} g5 {[%emt 0:02:19]} (17... Kb8 $11) 18. hxg5 {
[%emt 0:04:25]} ({Better is} 18. Ne4 $14) 18... Qg6 {[%emt 0:09:59]} 19. Qc2 {
[%emt 0:05:16]} Bxg5+ {[%emt 0:01:39]} 20. Kb1 $1 {[%emt 0:00:04] [#] Hoping
for Bd3.} Qxc2+ {[%emt 0:01:47]} 21. Kxc2 {[%emt 0:04:23] Black must now
prevent Ne4.} Rxe5 {[%emt 0:00:48]} 22. Rxh7 {[%emt 0:02:06]} Rf8 {[%emt 0:00:
00]} 23. a4 {[%emt 0:02:40][%cal Ya3a4,Ya4a5]} d5 {[%emt 0:01:29][%cal Rd5c4]}
24. a5 $1 {[%emt 0:06:23]} Nd7 {[%emt 0:02:04]} 25. Na4 {[%emt 0:00:00]} (25.
g3 $5 {[%cal Rf1h3]}) 25... Re7 $132 {[%emt 0:01:03] Black is fighting back}
26. Rh5 {[%emt 0:01:17]} Rf2+ {[%emt 0:00:18]} 27. Kb1 {[%emt 0:00:08]} Be3 {
[%emt 0:00:49]} ({Black should play} 27... Ref7 $11 28. Rxg5 Rxf1 29. Rxf1
Rxf1+ 30. Bc1 dxc4) 28. Rh8+ {[%emt 0:01:23]} Kb7 {[%emt 0:00:00]} 29. g3 {
[%emt 0:00:48] [#] aiming for Bh3.} dxc4 {[%emt 0:01:14]} 30. bxc4 {[%emt 0:01:
08] Bh3 is the strong threat. Really sharp!} Ne5 $2 {[%emt 0:00:00]} (30...
Rxf1 $14 31. Rxf1 Bxc4) 31. Bh3 {[%emt 0:00:39] White threatens Bc8+ and mate.}
Nf7 {[%emt 0:01:05]} (31... Rh2 $18 32. Bc8+ Kb8) 32. Bc8+ {[%emt 0:00:12]
Weighted Error Value: White=0.16 (very precise) / Black=0.70} 1-0

[Event "44th Chess Olympiad Women 2022"]
[Site "Chennai"]
[Date "2022.08.06"]
[Round "8.5"]
[White "Balabayeva, Xeniya"]
[Black "Hagarova, Zuzana"]
[Result "1/2-1/2"]
[WhiteElo "2198"]
[BlackElo "2293"]
[Annotator "NA RC"]
[PlyCount "84"]
[EventDate "2022.??.??"]
[TimeControl "60"]

1. e4 {[%emt 0:00:03]} c5 {[%emt 0:00:11]} 2. Nf3 {[%emt 0:00:16]} d6 {[%emt 0:
00:00]} 3. Bb5+ {[%emt 0:00:15]} Nc6 {[%emt 0:00:29]} 4. O-O {[%emt 0:00:42]}
Bd7 {[%emt 0:00:24]} 5. Re1 {[%emt 0:01:07]} Nf6 {[%emt 0:01:24]} 6. c3 {
[%emt 0:00:23]} a6 {[%emt 0:00:49]} 7. Bc4 {[%emt 0:01:16]} Bg4 {[%emt 0:01:32]
} 8. h3 {[%emt 0:00:33]} Bxf3 {[%emt 0:02:26]} 9. Qxf3 {[%emt 0:00:13]} e6 {
[%emt 0:10:11]} 10. d3 {[%emt 0:09:57]} Be7 {[%emt 0:06:58]} 11. Bf4 {[%emt 0:
00:00]} O-O {[%emt 0:03:16]} 12. Nd2 {[%emt 0:03:05]} Ne5 {[%emt 0:22:39]} 13.
Bxe5 {[%emt 0:05:02]} dxe5 {[%emt 0:00:42]} 14. a4 {[%emt 0:01:08]} b6 {
[%emt 0:03:10]} 15. Qe2 {[%emt 0:06:39]} Qd7 {[%emt 0:15:11]} 16. Nf3 {[%emt 0:
00:00]} b5 {[%emt 0:01:36]} 17. Bb3 {[%emt 0:03:10]} Qc7 {[%emt 0:02:57]} 18.
Bc2 {[%emt 0:09:24]} Nd7 {[%emt 0:02:44]} 19. Rec1 {[%emt 0:10:35]} Rfd8 {
[%emt 0:04:33]} 20. h4 {[%emt 0:14:32]} h6 {[%emt 0:04:49]} 21. g3 {[%emt 0:00:
00]} Rab8 {[%emt 0:03:00]} 22. a5 {[%emt 0:02:04]} Rbc8 {[%emt 0:02:35]} 23. c4
{[%emt 0:04:34]} bxc4 {[%emt 0:07:48]} 24. dxc4 {[%emt 0:00:01]} Rb8 {[%emt 0:
00:00]} 25. Ba4 {[%emt 0:01:13]} Nf6 {[%emt 0:00:50]} 26. Qc2 {[%emt 0:03:09]}
Rb4 {[%emt 0:01:15]} 27. b3 {[%emt 0:00:47]} Rbb8 {[%emt 0:00:54]} 28. Re1 {
[%emt 0:00:59]} Ng4 {[%emt 0:00:17]} 29. Qc3 {[%emt 0:00:21]} g6 {[%emt 0:00:
00]} 30. Kg2 {[%emt 0:00:43]} h5 {[%emt 0:00:18]} 31. Rad1 {[%emt 0:00:39]} Bf6
{[%emt 0:00:53]} 32. Ng5 {[%emt 0:00:32]} Rxd1 {[%emt 0:00:23]} 33. Rxd1 {
[%emt 0:00:01]} Rd8 {[%emt 0:00:28]} 34. Rd2 {[%emt 0:00:23]} Be7 {[%emt 0:00:
00]} 35. Nf3 {[%emt 0:00:38]} Nf6 {[%emt 0:00:26]} 36. Rxd8+ {[%emt 0:00:47]}
Bxd8 {[%emt 0:00:20]} 37. Qxe5 {[%emt 0:00:34]} Qxa5 {[%emt 0:00:20]} 38. Qf4 {
[%emt 0:00:33]} Ng4 {[%emt 0:00:49]} 39. Be8 {[%emt 0:00:39]} Qc7 {[%emt 0:00:
00]} 40. Qxc7 {[%emt 0:00:12]} Bxc7 {[%emt 0:00:06]} 41. Kf1 {[%emt 0:30:16]}
Kf8 {[%emt 0:30:52]} 42. Bc6 {[%emt 0:00:27]} Ne5 {[%emt 0:00:00]} 1/2-1/2